[Event "Early-Titled-Tuesday-Blitz-January-30-2024"]
[Site "Chess.com"]
[Date "2024.01.30"]
[Round "2"]
[White "tomesao"]
[Black "Better_Chess_Faster"]
[Result "1-0"]
[WhiteElo "2482"]
[BlackElo "2139"]
[TimeControl "180+1"]
[EndTime "8:18:34 PST"]
[Termination "tomesao won by resignation"]

1. Nf3 {[%clk 0:03:00.9]} 1... f5 {[%clk 0:02:58.5]} 2. c4 {[%clk 0:02:48.8]}
2... Nf6 {[%clk 0:02:57.1]} 3. b3 {[%clk 0:02:46.1]} 3... e6 {[%clk 0:02:51.1]}
4. Bb2 {[%clk 0:02:46.1]} 4... d5 {[%clk 0:02:50.7]} 5. d3 {[%clk 0:02:43]} 5...
Be7 {[%clk 0:02:48.2]} 6. g3 {[%clk 0:02:43.2]} 6... O-O {[%clk 0:02:47.3]} 7.
Bg2 {[%clk 0:02:43.7]} 7... c6 {[%clk 0:02:42.1]} 8. O-O {[%clk 0:02:43.9]} 8...
Nbd7 {[%clk 0:02:35.8]} 9. Ne5 {[%clk 0:02:41.7]} 9... Nxe5 {[%clk 0:02:33.6]}
10. Bxe5 {[%clk 0:02:42.6]} 10... Nd7 {[%clk 0:02:24]} 11. Bb2 {[%clk
0:02:39.1]} 11... Bf6 {[%clk 0:02:23.6]} 12. Qc2 {[%clk 0:02:39.1]} 12... Ne5
{[%clk 0:02:15.2]} 13. Nd2 {[%clk 0:02:35.5]} 13... Bd7 {[%clk 0:02:14.3]} 14.
Nf3 {[%clk 0:02:29.2]} 14... Nxf3+ {[%clk 0:02:12.1]} 15. Bxf3 {[%clk
0:02:24.9]} 15... Bxb2 {[%clk 0:02:11.6]} 16. Qxb2 {[%clk 0:02:25.1]} 16... Qf6
{[%clk 0:02:11.7]} 17. Qxf6 {[%clk 0:02:25.1]} 17... Rxf6 {[%clk 0:02:10.7]} 18.
d4 {[%clk 0:02:24.4]} 18... f4 {[%clk 0:02:04.2]} 19. Bg2 {[%clk 0:02:19.8]}
19... Raf8 {[%clk 0:02:02.7]} 20. c5 {[%clk 0:02:12.2]} 20... g5 {[%clk
0:01:59.1]} 21. b4 {[%clk 0:02:05.9]} 21... a6 {[%clk 0:01:57.7]} 22. a4 {[%clk
0:02:05.2]} 22... Be8 {[%clk 0:01:51.9]} 23. Rab1 {[%clk 0:02:04.2]} 23... Bg6
{[%clk 0:01:48.2]} 24. Rb2 {[%clk 0:01:59.3]} 24... fxg3 {[%clk 0:01:42.2]} 25.
fxg3 {[%clk 0:01:58.8]} 25... Rxf1+ {[%clk 0:01:37.5]} 26. Bxf1 {[%clk
0:01:59.7]} 26... Be4 {[%clk 0:01:34.2]} 27. b5 {[%clk 0:01:57.5]} 27... axb5
{[%clk 0:01:33.4]} 28. axb5 {[%clk 0:01:57.2]} 28... Ra8 {[%clk 0:01:19.7]} 29.
bxc6 {[%clk 0:01:52.8]} 29... bxc6 {[%clk 0:01:19.7]} 30. Rb6 {[%clk 0:01:52.8]}
30... Rc8 {[%clk 0:01:11.5]} 31. Rb7 {[%clk 0:01:42]} 31... Bc2 {[%clk
0:01:03.6]} 32. Kf2 {[%clk 0:01:35.9]} 32... Ba4 {[%clk 0:00:57.3]} 33. Bh3
{[%clk 0:01:31.2]} 33... Re8 {[%clk 0:00:51.2]} 34. e3 {[%clk 0:01:23]} 34...
Bb5 {[%clk 0:00:48]} 35. Ke1 {[%clk 0:01:17.8]} 35... h5 {[%clk 0:00:47.4]} 36.
Rc7 {[%clk 0:01:11.1]} 36... g4 {[%clk 0:00:45.1]} 37. Bf1 {[%clk 0:01:10.4]}
37... e5 {[%clk 0:00:45.3]} 38. Bxb5 {[%clk 0:01:04.5]} 38... cxb5 {[%clk
0:00:45.1]} 39. Kd2 {[%clk 0:00:58.2]} 39... exd4 {[%clk 0:00:44.8]} 40. exd4
{[%clk 0:00:58.4]} 40... Re4 {[%clk 0:00:41.5]} 41. Kd3 {[%clk 0:00:56.3]} 41...
Re1 {[%clk 0:00:41.1]} 42. Rb7 {[%clk 0:00:54.8]} 42... Rd1+ {[%clk 0:00:33.1]}
43. Ke3 {[%clk 0:00:54.8]} 43... Re1+ {[%clk 0:00:23.2]} 44. Kd2 {[%clk
0:00:54.5]} 44... Rh1 {[%clk 0:00:20.1]} 45. c6 {[%clk 0:00:51.5]} 45... Rxh2+
{[%clk 0:00:20]} 46. Kd3 {[%clk 0:00:52]} 46... Rh1 {[%clk 0:00:18.8]} 47. c7
{[%clk 0:00:51.8]} 47... Rc1 {[%clk 0:00:19.2]} 48. Rb8+ {[%clk 0:00:51.4]} 1-0

[Event "Early-Titled-Tuesday-Blitz-January-30-2024"]
[Site "Chess.com"]
[Date "2024.01.30"]
[Round "2"]
[White "SuanFernandes"]
[Black "Druid24"]
[Result "0-1"]
[WhiteElo "2334"]
[BlackElo "2716"]
[TimeControl "180+1"]
[EndTime "8:18:35 PST"]
[Termination "Druid24 won on time"]

1. d4 {[%clk 0:02:58.9]} 1... Nf6 {[%clk 0:02:59.6]} 2. c4 {[%clk 0:02:58.8]}
2... e6 {[%clk 0:02:59.7]} 3. Nf3 {[%clk 0:02:58.7]} 3... d5 {[%clk 0:02:59.6]}
4. Nc3 {[%clk 0:02:58.4]} 4... Bb4 {[%clk 0:02:59]} 5. Bg5 {[%clk 0:02:55.6]}
5... h6 {[%clk 0:02:59.4]} 6. Bxf6 {[%clk 0:02:55.5]} 6... Qxf6 {[%clk
0:03:00.3]} 7. e3 {[%clk 0:02:55.9]} 7... O-O {[%clk 0:02:56.4]} 8. Rc1 {[%clk
0:02:55.5]} 8... dxc4 {[%clk 0:02:53.6]} 9. Bxc4 {[%clk 0:02:55.1]} 9... c5
{[%clk 0:02:54.3]} 10. O-O {[%clk 0:02:54.5]} 10... cxd4 {[%clk 0:02:54.9]} 11.
Ne4 {[%clk 0:02:52.3]} 11... Qf5 {[%clk 0:02:54.4]} 12. Bd3 {[%clk 0:02:29.1]}
12... dxe3 {[%clk 0:02:42.9]} 13. Nd6 {[%clk 0:02:25.8]} 13... Qf4 {[%clk
0:02:14]} 14. Nxc8 {[%clk 0:02:05.6]} 14... Nc6 {[%clk 0:02:14.4]} 15. Rc4
{[%clk 0:02:01.7]} 15... Qc7 {[%clk 0:02:06.2]} 16. a3 {[%clk 0:01:59.9]} 16...
Bd2 {[%clk 0:02:02]} 17. Nxd2 {[%clk 0:01:02.6]} 17... exd2 {[%clk 0:02:01.4]}
18. Qxd2 {[%clk 0:00:53.1]} 18... Raxc8 {[%clk 0:01:59.8]} 19. Be4 {[%clk
0:00:53]} 19... Rfd8 {[%clk 0:01:59.3]} 20. Qc3 {[%clk 0:00:47.7]} 20... Qe5
{[%clk 0:01:55.6]} 21. Rxc6 {[%clk 0:00:42.2]} 21... Qxc3 {[%clk 0:01:33.3]} 22.
Rxc3 {[%clk 0:00:41.3]} 22... Rxc3 {[%clk 0:01:34.2]} 23. bxc3 {[%clk
0:00:41.8]} 23... b6 {[%clk 0:01:35.1]} 24. Rc1 {[%clk 0:00:35.8]} 24... Kf8
{[%clk 0:01:34.5]} 25. f3 {[%clk 0:00:36.2]} 25... Ke7 {[%clk 0:01:34.3]} 26.
Kf2 {[%clk 0:00:36.8]} 26... f5 {[%clk 0:01:35.2]} 27. Bc2 {[%clk 0:00:34.8]}
27... Rd2+ {[%clk 0:01:35.7]} 28. Kf1 {[%clk 0:00:35.1]} 28... g5 {[%clk
0:01:33.3]} 29. Bd1 {[%clk 0:00:35.3]} 29... Kd6 {[%clk 0:01:32.8]} 30. Be2
{[%clk 0:00:35.4]} 30... Ke5 {[%clk 0:01:33.1]} 31. Bc4 {[%clk 0:00:33.5]} 31...
Kf6 {[%clk 0:01:31.7]} 32. Re1 {[%clk 0:00:31.2]} 32... e5 {[%clk 0:01:31.9]}
33. Re2 {[%clk 0:00:31.4]} 33... Rd6 {[%clk 0:01:32]} 34. Bb5 {[%clk 0:00:28.4]}
34... Rd5 {[%clk 0:01:24.6]} 35. a4 {[%clk 0:00:28.1]} 35... h5 {[%clk
0:01:21.5]} 36. Kf2 {[%clk 0:00:28]} 36... g4 {[%clk 0:01:21]} 37. c4 {[%clk
0:00:25.4]} 37... Rd4 {[%clk 0:01:20.3]} 38. Ke3 {[%clk 0:00:25.5]} 38... f4+
{[%clk 0:01:11]} 39. Kf2 {[%clk 0:00:24.6]} 39... Kf5 {[%clk 0:01:11.9]} 40. Be8
{[%clk 0:00:20.2]} 40... Rxc4 {[%clk 0:01:01.4]} 41. Bxh5 {[%clk 0:00:05.5]}
41... gxf3 {[%clk 0:01:01.8]} 0-1

[Event "Early-Titled-Tuesday-Blitz-January-30-2024"]
[Site "Chess.com"]
[Date "2024.01.30"]
[Round "2"]
[White "kai_nov"]
[Black "gm_rashid"]
[Result "0-1"]
[WhiteElo "2276"]
[BlackElo "2534"]
[TimeControl "180+1"]
[EndTime "8:18:36 PST"]
[Termination "gm_rashid won by resignation"]

1. d4 {[%clk 0:02:57.3]} 1... Nf6 {[%clk 0:02:59.5]} 2. Nc3 {[%clk 0:02:54.5]}
2... d5 {[%clk 0:02:59]} 3. Nf3 {[%clk 0:02:48.4]} 3... g6 {[%clk 0:02:57.9]} 4.
Bg5 {[%clk 0:02:44.7]} 4... Bg7 {[%clk 0:02:57.5]} 5. e3 {[%clk 0:02:44.3]} 5...
O-O {[%clk 0:02:56.1]} 6. Bd3 {[%clk 0:02:43.6]} 6... c5 {[%clk 0:02:56]} 7. O-O
{[%clk 0:02:36.3]} 7... Nc6 {[%clk 0:02:53.1]} 8. dxc5 {[%clk 0:02:27.8]} 8...
e5 {[%clk 0:02:41.9]} 9. e4 {[%clk 0:02:21.8]} 9... d4 {[%clk 0:02:40.2]} 10.
Nd5 {[%clk 0:02:17.3]} 10... Be6 {[%clk 0:02:36.4]} 11. Bxf6 {[%clk 0:02:09.5]}
11... Bxf6 {[%clk 0:02:36.3]} 12. Nxf6+ {[%clk 0:02:09.3]} 12... Qxf6 {[%clk
0:02:36.1]} 13. a3 {[%clk 0:02:01.3]} 13... a5 {[%clk 0:02:30.2]} 14. Qe2 {[%clk
0:01:54.2]} 14... Rac8 {[%clk 0:02:28.8]} 15. h3 {[%clk 0:01:50.4]} 15... h5
{[%clk 0:02:23.9]} 16. Bc4 {[%clk 0:01:47.7]} 16... Nd8 {[%clk 0:02:21.5]} 17.
Bxe6 {[%clk 0:01:40.1]} 17... Nxe6 {[%clk 0:02:21.1]} 18. b4 {[%clk 0:01:38.6]}
18... Nf4 {[%clk 0:02:16.4]} 19. Qd1 {[%clk 0:01:27.3]} 19... g5 {[%clk
0:02:03.6]} 20. Kh2 {[%clk 0:01:14.4]} 20... Kg7 {[%clk 0:02:03.4]} 21. g3
{[%clk 0:01:04.6]} 21... Ne6 {[%clk 0:02:01.3]} 22. Kg2 {[%clk 0:01:03.2]} 22...
Rh8 {[%clk 0:01:57.2]} 23. h4 {[%clk 0:01:00.5]} 23... Rcg8 {[%clk 0:01:41.5]}
24. hxg5 {[%clk 0:00:49.3]} 24... Nxg5 {[%clk 0:01:41.6]} 25. Nxg5 {[%clk
0:00:40]} 25... Qxg5 {[%clk 0:01:41.7]} 26. Qf3 {[%clk 0:00:28.4]} 26... h4
{[%clk 0:01:39.9]} 27. Qf5 {[%clk 0:00:26.1]} 27... Qxf5 {[%clk 0:01:35.7]} 28.
exf5 {[%clk 0:00:24.2]} 28... Kf6 {[%clk 0:01:35.8]} 29. bxa5 {[%clk 0:00:22.5]}
29... Ra8 {[%clk 0:01:35.3]} 30. gxh4 {[%clk 0:00:18.9]} 30... Rxa5 {[%clk
0:01:33.3]} 31. Kg3 {[%clk 0:00:18.6]} 31... Rxc5 {[%clk 0:01:32.9]} 32. Rab1
{[%clk 0:00:18.9]} 32... Kxf5 {[%clk 0:01:30.4]} 33. Rxb7 {[%clk 0:00:18.1]}
33... f6 {[%clk 0:01:30.5]} 34. a4 {[%clk 0:00:17.7]} 34... Rc3+ {[%clk
0:01:25.1]} 35. f3 {[%clk 0:00:17.3]} 35... Ra3 {[%clk 0:01:23.8]} 36. Rb4
{[%clk 0:00:15.4]} 36... Rg8+ {[%clk 0:01:21.5]} 37. Kf2 {[%clk 0:00:14.7]}
37... Rc8 {[%clk 0:01:20.5]} 38. h5 {[%clk 0:00:11.8]} 38... Rxc2+ {[%clk
0:01:19.1]} 39. Kg3 {[%clk 0:00:11.9]} 39... Raa2 {[%clk 0:01:18.4]} 40. Rg1
{[%clk 0:00:10.4]} 40... Rh2 {[%clk 0:01:17.3]} 41. Rb5 {[%clk 0:00:03.2]} 41...
Rxh5 {[%clk 0:01:13.9]} 42. a5 {[%clk 0:00:03.3]} 42... Rg5+ {[%clk 0:01:12.3]}
0-1

[Event "Early-Titled-Tuesday-Blitz-January-30-2024"]
[Site "Chess.com"]
[Date "2024.01.30"]
[Round "2"]
[White "korkmaz16"]
[Black "UnTucopalaTimba"]
[Result "1-0"]
[WhiteElo "2449"]
[BlackElo "1920"]
[TimeControl "180+1"]
[EndTime "8:18:36 PST"]
[Termination "korkmaz16 won by resignation"]

1. e4 {[%clk 0:03:00.9]} 1... c6 {[%clk 0:02:59.8]} 2. d4 {[%clk 0:02:56.6]}
2... d5 {[%clk 0:02:59.3]} 3. Nc3 {[%clk 0:02:57.1]} 3... dxe4 {[%clk
0:02:58.7]} 4. Nxe4 {[%clk 0:02:57.7]} 4... Bf5 {[%clk 0:02:58.7]} 5. Ng3 {[%clk
0:02:53.4]} 5... Bg6 {[%clk 0:02:58.4]} 6. h4 {[%clk 0:02:54.1]} 6... h6 {[%clk
0:02:57.7]} 7. Nf3 {[%clk 0:02:54.6]} 7... Nd7 {[%clk 0:02:57.1]} 8. h5 {[%clk
0:02:55.2]} 8... Bh7 {[%clk 0:02:57]} 9. Bd3 {[%clk 0:02:55.9]} 9... Bxd3 {[%clk
0:02:57]} 10. Qxd3 {[%clk 0:02:56.6]} 10... e6 {[%clk 0:02:56.6]} 11. Bd2 {[%clk
0:02:57.3]} 11... Ngf6 {[%clk 0:02:52.9]} 12. O-O-O {[%clk 0:02:56.9]} 12... Be7
{[%clk 0:02:52.6]} 13. Ne4 {[%clk 0:02:57.5]} 13... Nxe4 {[%clk 0:02:52.4]} 14.
Qxe4 {[%clk 0:02:58.2]} 14... Nf6 {[%clk 0:02:52.3]} 15. Qe2 {[%clk 0:02:58.2]}
15... Qd5 {[%clk 0:02:52]} 16. Kb1 {[%clk 0:02:58.2]} 16... Qe4 {[%clk
0:02:42.6]} 17. Be3 {[%clk 0:02:57.9]} 17... O-O {[%clk 0:02:34.2]} 18. Rh4
{[%clk 0:02:52.3]} 18... Qd5 {[%clk 0:02:27.2]} 19. Ne5 {[%clk 0:02:48.5]} 19...
Bd6 {[%clk 0:02:14.6]} 20. c4 {[%clk 0:02:45.9]} 20... Qa5 {[%clk 0:02:12.1]}
21. Ng4 {[%clk 0:02:38.5]} 21... Be7 {[%clk 0:02:00.2]} 22. Ne5 {[%clk
0:02:23.6]} 22... c5 {[%clk 0:01:52.5]} 23. Bd2 {[%clk 0:01:58.2]} 23... Qc7
{[%clk 0:01:48]} 24. Rf4 {[%clk 0:01:33.9]} 24... cxd4 {[%clk 0:01:44.2]} 25.
Rxd4 {[%clk 0:01:33.6]} 25... Rad8 {[%clk 0:01:28.1]} 26. Bc3 {[%clk 0:01:29.9]}
26... Qb6 {[%clk 0:01:17]} 27. Nd7 {[%clk 0:01:24.1]} 27... Rxd7 {[%clk
0:01:10.5]} 28. Rxd7 {[%clk 0:01:24.2]} 28... Nxd7 {[%clk 0:01:10]} 29. Rxd7
{[%clk 0:01:24.8]} 29... Bb4 {[%clk 0:00:50.7]} 30. Bd4 {[%clk 0:01:22.8]} 30...
Qc6 {[%clk 0:00:48.2]} 31. Qg4 {[%clk 0:01:22.8]} 31... g6 {[%clk 0:00:17.9]}
32. Qf4 {[%clk 0:01:10.3]} 32... g5 {[%clk 0:00:12.9]} 33. Qf6 {[%clk
0:01:09.6]} 33... e5 {[%clk 0:00:11.8]} 34. Qxe5 {[%clk 0:01:05.2]} 34... f6
{[%clk 0:00:10.1]} 35. Qd5+ {[%clk 0:01:03.1]} 35... Qxd5 {[%clk 0:00:10.1]} 36.
cxd5 {[%clk 0:01:03.6]} 36... Rf7 {[%clk 0:00:07]} 37. Rd8+ {[%clk 0:01:01.5]}
37... Kg7 {[%clk 0:00:06.9]} 38. d6 {[%clk 0:01:01.8]} 38... Ba5 {[%clk
0:00:06.1]} 39. Re8 {[%clk 0:00:58.2]} 39... Rd7 {[%clk 0:00:05]} 40. Re6 {[%clk
0:00:56.6]} 40... Kf7 {[%clk 0:00:04.8]} 41. Rxf6+ {[%clk 0:00:56.9]} 41... Ke8
{[%clk 0:00:04.4]} 42. Rxh6 {[%clk 0:00:55.6]} 1-0

[Event "Early-Titled-Tuesday-Blitz-January-30-2024"]
[Site "Chess.com"]
[Date "2024.01.30"]
[Round "2"]
[White "Matols"]
[Black "TERMINATOR_PC"]
[Result "0-1"]
[WhiteElo "2376"]
[BlackElo "2631"]
[TimeControl "180+1"]
[EndTime "8:18:37 PST"]
[Termination "TERMINATOR_PC won by resignation"]

1. d4 {[%clk 0:03:00.9]} 1... Nf6 {[%clk 0:02:59.7]} 2. c4 {[%clk 0:03:01.3]}
2... e6 {[%clk 0:02:59]} 3. g3 {[%clk 0:03:01.2]} 3... Bb4+ {[%clk 0:02:57.1]}
4. Bd2 {[%clk 0:03:00.3]} 4... a5 {[%clk 0:02:52.6]} 5. Bg2 {[%clk 0:03:00.1]}
5... d6 {[%clk 0:02:51.2]} 6. e4 {[%clk 0:03:00.2]} 6... Nc6 {[%clk 0:02:51]} 7.
Ne2 {[%clk 0:03:00.2]} 7... O-O {[%clk 0:02:50.8]} 8. O-O {[%clk 0:03:00]} 8...
e5 {[%clk 0:02:51.4]} 9. Be3 {[%clk 0:02:54.6]} 9... exd4 {[%clk 0:02:48.6]} 10.
Nxd4 {[%clk 0:02:55.5]} 10... Bd7 {[%clk 0:02:47.3]} 11. a3 {[%clk 0:02:50.4]}
11... Bc5 {[%clk 0:02:45]} 12. Nxc6 {[%clk 0:02:48.8]} 12... Bxc6 {[%clk
0:02:45.9]} 13. Bxc5 {[%clk 0:02:48.3]} 13... dxc5 {[%clk 0:02:46.8]} 14. Nc3
{[%clk 0:02:24.4]} 14... Re8 {[%clk 0:02:11.2]} 15. Qc2 {[%clk 0:02:07]} 15...
Qd4 {[%clk 0:02:03.3]} 16. Nd5 {[%clk 0:01:58.6]} 16... Bxd5 {[%clk 0:01:45.1]}
17. exd5 {[%clk 0:01:59.5]} 17... Rad8 {[%clk 0:01:40.3]} 18. Rad1 {[%clk
0:01:57.9]} 18... Qg4 {[%clk 0:01:39]} 19. h3 {[%clk 0:01:52]} 19... Qd7 {[%clk
0:01:37.6]} 20. Rfe1 {[%clk 0:01:45.9]} 20... b6 {[%clk 0:01:36.1]} 21. Qc3
{[%clk 0:01:33.7]} 21... Qd6 {[%clk 0:01:34.7]} 22. Rxe8+ {[%clk 0:01:31.2]}
22... Rxe8 {[%clk 0:01:34.6]} 23. Re1 {[%clk 0:01:31.2]} 23... Rxe1+ {[%clk
0:01:33.6]} 24. Qxe1 {[%clk 0:01:32.1]} 24... Kf8 {[%clk 0:01:33.2]} 25. f4
{[%clk 0:01:12.7]} 25... Ne8 {[%clk 0:01:29.5]} 26. Kf2 {[%clk 0:01:10.3]} 26...
Qe7 {[%clk 0:01:27.8]} 27. Qe5 {[%clk 0:00:59.2]} 27... Nd6 {[%clk 0:01:26.2]}
28. b3 {[%clk 0:00:54.6]} 28... a4 {[%clk 0:01:23.5]} 29. Qc3 {[%clk 0:00:31.6]}
29... axb3 {[%clk 0:01:21.1]} 30. Qxb3 {[%clk 0:00:32.5]} 30... Qe8 {[%clk
0:01:14.6]} 31. a4 {[%clk 0:00:28.6]} 31... Qa8 {[%clk 0:01:12.9]} 32. Bf1
{[%clk 0:00:25.4]} 32... Qa5 {[%clk 0:01:11]} 33. Ke2 {[%clk 0:00:19.9]} 33...
Ne4 {[%clk 0:01:10]} 34. Bg2 {[%clk 0:00:14.6]} 34... Qd2+ {[%clk 0:01:08.4]}
35. Kf3 {[%clk 0:00:13]} 35... f5 {[%clk 0:01:05.7]} 36. Qe3 {[%clk 0:00:11]}
36... Qd1+ {[%clk 0:01:04.9]} 37. Qe2 {[%clk 0:00:09.3]} 37... Qxe2+ {[%clk
0:01:04.4]} 38. Kxe2 {[%clk 0:00:09.3]} 38... Nxg3+ {[%clk 0:01:05]} 39. Kf3
{[%clk 0:00:09.4]} 39... Ne4 {[%clk 0:01:04.8]} 40. Ke3 {[%clk 0:00:07.9]} 40...
Nd6 {[%clk 0:01:04.7]} 41. Kd3 {[%clk 0:00:07.7]} 41... Kf7 {[%clk 0:01:05.2]}
42. Bf3 {[%clk 0:00:07.4]} 42... Kf6 {[%clk 0:01:05.3]} 43. Be2 {[%clk
0:00:07.3]} 43... g5 {[%clk 0:01:04.2]} 44. fxg5+ {[%clk 0:00:06.7]} 44... Kxg5
{[%clk 0:01:05.1]} 45. Bf3 {[%clk 0:00:05]} 45... Kf4 {[%clk 0:01:04.8]} 46. Bg2
{[%clk 0:00:05.3]} 46... Kg3 {[%clk 0:01:04.6]} 47. Bf1 {[%clk 0:00:05.5]} 47...
f4 {[%clk 0:01:05]} 0-1

[Event "Early-Titled-Tuesday-Blitz-January-30-2024"]
[Site "Chess.com"]
[Date "2024.01.30"]
[Round "2"]
[White "yuriydovzik"]
[Black "secretsuperstar7"]
[Result "0-1"]
[WhiteElo "2217"]
[BlackElo "2510"]
[TimeControl "180+1"]
[EndTime "8:18:38 PST"]
[Termination "secretsuperstar7 won on time"]

1. f4 {[%clk 0:02:03.1]} 1... e5 {[%clk 0:02:57]} 2. fxe5 {[%clk 0:02:02.1]}
2... d6 {[%clk 0:02:55.3]} 3. exd6 {[%clk 0:02:00]} 3... Bxd6 {[%clk 0:02:55.4]}
4. e4 {[%clk 0:01:57.4]} 4... c5 {[%clk 0:02:49.3]} 5. Nc3 {[%clk 0:01:52.6]}
5... Qh4+ {[%clk 0:02:46.8]} 6. Ke2 {[%clk 0:01:44.9]} 6... Bg4+ {[%clk
0:02:39.4]} 7. Nf3 {[%clk 0:01:44.8]} 7... Nc6 {[%clk 0:02:38]} 8. Nb5 {[%clk
0:01:34.3]} 8... O-O-O {[%clk 0:02:17.4]} 9. Qe1 {[%clk 0:01:28.1]} 9... Qe7
{[%clk 0:01:58.1]} 10. d3 {[%clk 0:01:18.1]} 10... Bb8 {[%clk 0:01:46]} 11. Be3
{[%clk 0:01:14.8]} 11... f5 {[%clk 0:01:37.7]} 12. Nc3 {[%clk 0:01:03.3]} 12...
Nf6 {[%clk 0:01:32.9]} 13. h3 {[%clk 0:00:48.9]} 13... Bh5 {[%clk 0:01:19.7]}
14. g4 {[%clk 0:00:36.8]} 14... fxe4 {[%clk 0:00:57.4]} 15. gxh5 {[%clk
0:00:31.2]} 15... exf3+ {[%clk 0:00:53.7]} 16. Kd2 {[%clk 0:00:27.1]} 16... Be5
{[%clk 0:00:35.4]} 17. Qf2 {[%clk 0:00:25.5]} 17... Bxc3+ {[%clk 0:00:29.4]} 18.
bxc3 {[%clk 0:00:24.4]} 18... Ne4+ {[%clk 0:00:29.3]} 19. Kc1 {[%clk 0:00:20]}
19... Nxf2 {[%clk 0:00:29.5]} 20. Bxf2 {[%clk 0:00:19.2]} 20... Qe5 {[%clk
0:00:27.3]} 21. Kb2 {[%clk 0:00:17.1]} 21... b5 {[%clk 0:00:22.1]} 22. h4 {[%clk
0:00:14.3]} 22... b4 {[%clk 0:00:21.7]} 23. Bh3+ {[%clk 0:00:13.3]} 23... Kb7
{[%clk 0:00:22]} 24. d4 {[%clk 0:00:10.6]} 24... bxc3+ {[%clk 0:00:21.5]} 25.
Kxc3 {[%clk 0:00:07.5]} 25... cxd4+ {[%clk 0:00:21.7]} 26. Kb2 {[%clk
0:00:04.6]} 26... d3+ {[%clk 0:00:21.8]} 27. c3 {[%clk 0:00:02.1]} 27... Qe2+
{[%clk 0:00:21.3]} 28. Ka3 {[%clk 0:00:01.8]} 28... Qxf2 {[%clk 0:00:20.5]} 29.
Rab1+ {[%clk 0:00:01.3]} 29... Ka8 {[%clk 0:00:20.9]} 0-1

[Event "Early-Titled-Tuesday-Blitz-January-30-2024"]
[Site "Chess.com"]
[Date "2024.01.30"]
[Round "2"]
[White "YairParkhov"]
[Black "lularobs"]
[Result "1-0"]
[WhiteElo "2682"]
[BlackElo "1569"]
[TimeControl "180+1"]
[EndTime "8:18:39 PST"]
[Termination "YairParkhov won by checkmate"]

1. e4 {[%clk 0:03:00.9]} 1... e6 {[%clk 0:03:00]} 2. d3 {[%clk 0:02:59.4]} 2...
d5 {[%clk 0:03:00.9]} 3. Nd2 {[%clk 0:02:59.7]} 3... Bc5 {[%clk 0:02:51.5]} 4.
Ngf3 {[%clk 0:02:55.4]} 4... Ne7 {[%clk 0:02:34.3]} 5. d4 {[%clk 0:02:53]} 5...
Bb6 {[%clk 0:02:31.7]} 6. Bd3 {[%clk 0:02:52.3]} 6... c5 {[%clk 0:02:29]} 7.
dxc5 {[%clk 0:02:50.2]} 7... Bxc5 {[%clk 0:02:26.6]} 8. O-O {[%clk 0:02:50.6]}
8... Nbc6 {[%clk 0:02:21.7]} 9. a3 {[%clk 0:02:35.5]} 9... O-O {[%clk
0:02:19.9]} 10. b4 {[%clk 0:02:28.6]} 10... dxe4 {[%clk 0:02:13.1]} 11. Nxe4
{[%clk 0:02:26.9]} 11... Bb6 {[%clk 0:02:02.3]} 12. Bb2 {[%clk 0:02:07.9]} 12...
Ng6 {[%clk 0:01:44.7]} 13. Neg5 {[%clk 0:01:52.3]} 13... Nd4 {[%clk 0:01:19.4]}
14. Bxd4 {[%clk 0:01:36]} 14... Bxd4 {[%clk 0:01:16.8]} 15. Bxg6 {[%clk
0:01:36.6]} 15... Bxa1 {[%clk 0:00:49.7]} 16. Bxf7+ {[%clk 0:00:44.4]} 16... Kh8
{[%clk 0:00:46.9]} 17. Qxa1 {[%clk 0:00:45]} 17... Qf6 {[%clk 0:00:27.3]} 18.
Qd1 {[%clk 0:00:42.1]} 18... h6 {[%clk 0:00:17.2]} 19. Ne4 {[%clk 0:00:42.1]}
19... Qxf7 {[%clk 0:00:15.8]} 20. Nd6 {[%clk 0:00:36.4]} 20... Qe7 {[%clk
0:00:15.9]} 21. Ne5 {[%clk 0:00:36.3]} 21... Bd7 {[%clk 0:00:15]} 22. Ng6+
{[%clk 0:00:36.2]} 22... Kh7 {[%clk 0:00:14.1]} 23. Nxe7 {[%clk 0:00:36.5]}
23... Bc6 {[%clk 0:00:13.5]} 24. Qd3+ {[%clk 0:00:36.5]} 24... Kh8 {[%clk
0:00:13]} 25. Ng6+ {[%clk 0:00:36.2]} 25... Kg8 {[%clk 0:00:13.3]} 26. Ne7+
{[%clk 0:00:36.6]} 26... Kh8 {[%clk 0:00:11.5]} 27. Qg6 {[%clk 0:00:35.2]} 27...
Rad8 {[%clk 0:00:08.8]} 28. Nf7+ {[%clk 0:00:34.5]} 28... Rxf7 {[%clk
0:00:07.5]} 29. Qxf7 {[%clk 0:00:35.4]} 29... Bd5 {[%clk 0:00:06]} 30. Ng6+
{[%clk 0:00:36.3]} 30... Kh7 {[%clk 0:00:05.9]} 31. Nf8+ {[%clk 0:00:36.8]}
31... Kh8 {[%clk 0:00:05]} 32. Rd1 {[%clk 0:00:36.1]} 32... e5 {[%clk
0:00:04.8]} 33. Rxd5 {[%clk 0:00:35.2]} 33... Rxd5 {[%clk 0:00:03.4]} 34. Ng6+
{[%clk 0:00:35.9]} 34... Kh7 {[%clk 0:00:03.7]} 35. Nf8+ {[%clk 0:00:36.6]}
35... Kh8 {[%clk 0:00:04]} 36. Qxd5 {[%clk 0:00:37.2]} 36... g6 {[%clk
0:00:02.8]} 37. Qf7 {[%clk 0:00:36.9]} 37... g5 {[%clk 0:00:02]} 38. Ng6# {[%clk
0:00:37.5]} 1-0